bitfinex/quotes_SOLUSD_20241028
["timestamp","ask_amount","ask_price","bid_price","bid_amount"]
[1730123481807,30.0,176.73,176.7,27.7603827]
[1730123482308,30.0,176.73,176.71,27.7603827]
[1730123482513,30.0,176.73,176.7,27.7603827]
[1730123483015,30.0,176.73,176.71,27.7603827]
[1730123483814,30.0,176.73,176.72,27.7603827]
[1730123483996,70.0,176.8,176.72,27.7603827]
[1730123484192,97.7603827,176.8,176.75,27.7603827]
[1730123484493,70.0,176.72,176.65,27.7603827]
[1730123484704,27.7603827,176.7,176.64,27.7603827]
[1730123485509,27.7603827,176.68,176.62,27.7603827]
[1730123485712,27.7603827,176.67,176.62,27.7603827]
[1730123486218,27.7603827,176.67,176.61,33.9986827]
[1730123486395,27.7603827,176.67,176.62,27.7603827]
[1730123486698,27.7603827,176.63,176.56,6.3272]
[1730123487024,27.7603827,176.61,176.55,27.7603827]
[1730123487824,28.0113627,176.6,176.54,27.7603827]
[1730123488198,100.0,176.62,176.54,27.7603827]
[1730123488395,27.7603827,176.6,176.54,27.7603827]
[1730123488621,28.0113627,176.61,176.55,27.7603827]
[1730123489002,30.0,176.59,176.56,27.7603827]
[1730123489204,30.0,176.59,176.55,27.7603827]
[1730123489429,30.0,176.59,176.54,27.7603827]
[1730123489716,57.7603827,176.59,176.53,27.7603827]
[1730123490107,70.0,176.58,176.53,27.7603827]
[1730123490312,57.7603827,176.59,176.53,27.7603827]
[1730123490529,30.0,176.59,176.55,27.7603827]
[1730123490826,30.0,176.59,176.56,27.7603827]
[1730123491128,30.0,176.59,176.5,22.56959683]
[1730123491129,30.0,176.57,176.55,27.7603827]
[1730123493220,30.0,176.57,176.56,27.7603827]
[1730123494124,30.0,176.57,176.53,27.7603827]
[1730123494328,57.7603827,176.57,176.51,27.7603827]
[1730123494536,30.0,176.57,176.5,0.1]
[1730123494738,30.0,176.57,176.51,0.1]
[1730123495243,70.0,176.63,176.52,0.1]
[1730123495416,70.0,176.65,176.52,0.1]
[1730123495615,27.7603827,176.64,176.59,27.7603827]
[1730123496137,97.7603827,176.65,176.59,27.7603827]
[1730123496511,70.0,176.65,176.6,27.7603827]
[1730123496812,97.7603827,176.65,176.6,27.7603827]
[1730123497213,97.7603827,176.65,176.59,27.7603827]
[1730123498215,30.0,176.6,176.59,27.7603827]
[1730123500323,30.0,176.6,176.58,27.7603827]
[1730123500520,30.0,176.6,176.59,27.7603827]
[1730123506539,30.0,176.6,176.59,17.32720492]
[1730123506841,70.0,176.67,176.59,17.32720492]
[1730123507033,70.0,176.69,176.65,17.32720492]
[1730123507217,30.0,176.66,176.65,17.32720492]
[1730123508642,30.0,176.66,176.64,17.32720492]
[1730123509943,30.0,176.65,176.64,17.32720492]
[1730123510436,30.0,176.65,176.63,17.32720492]
[1730123512621,30.0,176.65,176.58,17.32720492]
[1730123512622,30.0,176.65,176.64,17.32720492]
[1730123514251,51.5168,176.65,176.58,17.32720492]
[1730123514544,70.0,176.55,176.53,5.85969523]
[1730123514750,70.0,176.55,176.51,17.32720492]
[1730123514953,87.32720492,176.55,176.49,17.32720492]
[1730123515639,30.0,176.54,176.51,17.32720492]
[1730123515841,30.0,176.54,176.5,17.32720492]
[1730123516220,30.0,176.54,176.49,17.32720492]
[1730123518550,30.0,176.54,176.48,17.32720492]
[1730123519448,17.32720492,176.49,176.47,0.5988059]
[1730123519642,35.6644,176.54,176.47,0.5988059]
[1730123519643,47.32720492,176.48,176.47,0.5988059]
[1730123519956,47.57818492,176.48,176.47,0.5988059]
[1730123520123,117.57818492,176.48,176.47,0.5988059]
[1730123520832,30.12549,176.48,176.47,0.5988059]
[1730123521035,30.0,176.48,176.47,0.5988059]
[1730123522749,117.57818492,176.48,176.47,0.5988059]
[1730123524245,117.57818492,176.48,176.37,5.85672905]
[1730123524246,0.25098,176.38,176.37,5.85672905]
[1730123524546,70.0,176.37,176.3,17.32720492]
[1730123524752,47.57818492,176.38,176.29,6.43700863]
[1730123524753,30.0,176.38,176.29,6.43700863]
[1730123525128,30.0,176.38,176.33,17.32720492]
[1730123525326,47.32720492,176.38,176.32,17.32720492]
[1730123525635,47.32720492,176.35,176.29,6.43700863]
[1730123525830,47.32720492,176.35,176.29,23.76421355]
[1730123526064,17.32720492,176.33,176.29,6.43700863]
[1730123526421,27.83392744,176.32,176.29,6.43700863]
[1730123527047,97.83392744,176.32,176.29,6.43700863]
[1730123527260,70.0,176.32,176.29,6.43700863]
[1730123527455,70.0,176.32,176.29,34.27093607]
[1730123527958,70.25098,176.3,176.29,6.43700863]
[1730123528456,70.0,176.32,176.29,28.43273334]
[1730123528958,70.0,176.32,176.29,0.5988059]
[1730123529132,70.0,176.32,176.29,28.43273334]
[1730123529946,0.25098,176.33,176.29,28.43273334]
[1730123530147,0.25098,176.34,176.32,27.83392744]
[1730123530364,43.25452744,176.38,176.32,27.83392744]
[1730123530365,30.0,176.33,176.32,27.83392744]
[1730123531052,30.0,176.33,176.31,27.83392744]
[1730123531446,100.0,176.33,176.31,27.83392744]
[1730123531646,0.25098,176.32,176.29,28.43273334]
[1730123531849,30.25098,176.32,176.29,0.5988059]
[1730123532451,30.25098,176.32,176.29,28.43273334]
[1730123532642,0.25098,176.3,176.29,0.5988059]
[1730123532842,30.25098,176.3,176.29,0.5988059]
[1730123534139,87.53389144,176.3,176.29,0.5988059]
[1730123535155,57.53389144,176.3,176.29,0.5988059]
[1730123535336,87.53389144,176.3,176.29,0.5988059]
[1730123535859,70.0,176.22,176.2,5.83386965]
[1730123536452,97.83392744,176.22,176.2,5.83386965]
[1730123536633,70.0,176.22,176.2,4.83386965]
[1730123537539,97.83392744,176.22,176.2,4.83386965]
[1730123537943,70.0,176.22,176.2,4.83386965]
[1730123538141,30.0,176.21,176.2,4.83386965]
[1730123538434,30.0,176.21,176.2,32.66779709]
[1730123539643,70.0,176.28,176.2,32.66779709]
[1730123539860,6.3624,176.29,176.26,27.83392744]
[1730123540160,70.0,176.3,176.28,27.83392744]
[1730123540663,70.0,176.3,176.27,27.83392744]
[1730123541057,70.0,176.3,176.28,27.83392744]
[1730123542967,70.0,176.3,176.22,27.83392744]
[1730123542968,70.0,176.33,176.29,27.83392744]
[1730123543144,70.0,176.35,176.32,27.83392744]
[1730123543343,70.0,176.35,176.31,27.83392744]
[1730123543667,97.83392744,176.35,176.29,27.83392744]
[1730123544045,70.0,176.35,176.3,27.83392744]
[1730123544879,70.0,176.37,176.34,27.83392744]
[1730123545042,70.0,176.37,176.35,27.83392744]
[1730123545245,70.0,176.37,176.24,15.4923]
[1730123545246,70.0,176.39,176.36,27.83392744]
[1730123545546,48.74172744,176.42,176.31,27.83392744]
[1730123545547,70.0,176.41,176.37,27.83392744]
[1730123545752,70.0,176.43,176.39,27.83392744]
[1730123545943,70.0,176.43,176.41,27.83392744]
[1730123546572,13.61843001,176.45,176.34,0.1]
[1730123546573,13.61843001,176.45,176.42,27.83392744]
[1730123546746,13.61843001,176.45,176.43,27.83392744]
[1730123546949,13.61843001,176.45,176.36,0.1]
[1730123546950,13.61843001,176.45,176.44,27.83392744]
[1730123547473,15.1266,176.54,176.44,27.83392744]
[1730123547474,70.0,176.52,176.44,27.83392744]
[1730123547671,70.0,176.52,176.41,0.1]
[1730123547672,70.0,176.52,176.5,27.83392744]
[1730123547973,70.0,176.52,176.49,27.83392744]
[1730123548182,70.0,176.5,176.46,27.83392744]
[1730123548360,70.0,176.47,176.38,0.1]
[1730123548674,70.0,176.47,176.42,27.83392744]
[1730123549958,70.0,176.47,176.43,27.83392744]
[1730123551190,70.0,176.47,176.42,27.83392744]
[1730123552376,70.0,176.49,176.46,27.83392744]
[1730123552971,70.0,176.51,176.46,27.83392744]
[1730123553977,70.0,176.49,176.45,27.83392744]
[1730123554181,97.83392744,176.47,176.41,27.83392744]
[1730123554882,70.0,176.47,176.43,27.83392744]
[1730123555187,70.0,176.47,176.44,27.83392744]
[1730123555387,70.0,176.49,176.45,27.83392744]
[1730123556413,70.0,176.49,176.44,27.83392744]
[1730123557087,97.83392744,176.49,176.43,27.83392744]
[1730123557269,70.0,176.46,176.36,23.876884]
[1730123557582,97.83392744,176.46,176.4,27.83392744]
[1730123557801,97.83392744,176.48,176.42,27.83392744]
[1730123558092,70.0,176.48,176.43,27.83392744]
[1730123558316,70.0,176.46,176.42,27.83392744]
[1730123558469,70.0,176.46,176.41,27.83392744]
[1730123558669,97.83392744,176.48,176.42,27.83392744]
[1730123558894,97.83392744,176.48,176.43,27.83392744]
[1730123559094,70.0,176.48,176.43,27.83392744]
[1730123559309,70.0,176.48,176.44,27.83392744]
[1730123560473,27.83392744,176.47,176.41,27.83392744]
[1730123560683,27.83392744,176.46,176.41,27.83392744]
[1730123561098,70.0,176.43,176.38,27.83392744]
[1730123561672,97.83392744,176.43,176.38,27.83392744]
[1730123562404,97.83392744,176.43,176.37,27.83392744]
[1730123562986,70.0,176.43,176.39,27.83392744]
[1730123564474,70.0,176.45,176.41,27.83392744]
[1730123564773,97.83392744,176.47,176.42,27.83392744]
[1730123564974,70.0,176.47,176.42,27.83392744]
[1730123566679,97.83392744,176.47,176.41,27.83392744]
[1730123566876,97.83392744,176.45,176.39,27.83392744]
[1730123567273,70.0,176.45,176.4,27.83392744]
[1730123568399,70.0,176.45,176.41,27.83392744]
[1730123569391,70.0,176.45,176.4,27.83392744]
[1730123569605,70.0,176.45,176.41,27.83392744]
[1730123569774,70.0,176.45,176.42,27.83392744]
[1730123569973,70.0,176.45,176.41,27.83392744]
[1730123571679,70.0,176.49,176.44,27.83392744]
[1730123571900,70.0,176.49,176.4,27.83392744]
[1730123571901,70.0,176.49,176.45,27.83392744]
[1730123572096,97.83392744,176.52,176.46,27.83392744]
[1730123572395,97.83392744,176.52,176.47,27.83392744]
[1730123572586,70.0,176.5,176.46,27.83392744]
[1730123572789,70.0,176.46,176.44,27.83392744]
[1730123572978,70.0,176.46,176.36,0.1]
[1730123572979,70.0,176.46,176.41,27.83392744]
[1730123573175,70.0,176.46,176.42,27.83392744]
[1730123573394,70.0,176.46,176.41,27.83392744]
[1730123574204,97.83392744,176.46,176.41,27.83392744]
[1730123574599,70.0,176.46,176.41,27.83392744]
[1730123575899,70.0,176.46,176.42,27.83392744]
[1730123576202,70.0,176.46,176.43,27.83392744]
[1730123576507,70.0,176.49,176.44,27.83392744]
[1730123576803,70.0,176.47,176.43,27.83392744]
[1730123577485,70.0,176.49,176.44,27.83392744]
[1730123577704,70.0,176.49,176.45,27.83392744]
[1730123577906,70.0,176.51,176.47,27.83392744]
[1730123578498,70.0,176.51,176.46,27.83392744]
[1730123578699,70.0,176.51,176.4,27.83392744]
[1730123578700,97.83392744,176.51,176.45,27.83392744]
[1730123579088,70.0,176.51,176.46,27.83392744]
[1730123579485,70.0,176.51,176.47,27.83392744]
[1730123580008,70.0,176.51,176.48,27.83392744]
[1730123580311,70.0,176.51,176.47,27.83392744]
[1730123580495,70.0,176.51,176.46,27.83392744]
[1730123580984,70.0,176.51,176.47,27.83392744]
[1730123581591,70.0,176.51,176.48,27.83392744]
[1730123582416,97.83392744,176.55,176.5,27.83392744]
[1730123582590,70.0,176.57,176.52,17.35238641]
[1730123583986,70.0,176.57,176.46,0.1]
[1730123583987,70.0,176.57,176.53,17.35238641]
[1730123584184,70.0,176.57,176.49,17.35238641]
[1730123584185,13.6080515,176.58,176.55,17.35238641]
[1730123584594,13.6080515,176.58,176.55,27.74647295]
[1730123584782,13.6080515,176.58,176.56,27.74647295]
[1730123586488,70.0,176.57,176.52,27.74647295]
[1730123586691,27.74647295,176.56,176.5,27.74647295]
[1730123587313,97.74647295,176.57,176.52,27.74647295]
[1730123587518,70.0,176.57,176.54,27.74647295]
[1730123587720,70.0,176.57,176.53,27.74647295]
[1730123588602,13.6080515,176.58,176.55,27.74647295]
[1730123588800,13.6080515,176.58,176.56,27.74647295]
[1730123589200,0.12549,176.56,176.51,27.74647295]
[1730123589508,70.0,176.51,176.45,16.6057]
[1730123589710,97.74647295,176.51,176.41,6.1884]
[1730123589913,97.74647295,176.51,176.45,27.74647295]
[1730123590218,97.74647295,176.51,176.41,6.1884]
[1730123590219,70.0,176.51,176.46,27.74647295]
[1730123590693,70.0,176.51,176.47,27.74647295]
[1730123592432,70.0,176.49,176.44,27.74647295]
[1730123593097,27.74647295,176.47,176.3,0.1]
[1730123593321,70.0,176.41,176.36,27.74647295]
[1730123593520,97.74647295,176.41,176.35,27.74647295]
[1730123594316,97.74647295,176.41,176.29,0.2]
[1730123594510,70.0,176.41,176.36,27.74647295]
[1730123595237,70.0,176.43,176.39,27.74647295]
[1730123595529,70.0,176.43,176.38,27.74647295]
[1730123595728,70.0,176.41,176.37,27.74647295]
[1730123596319,70.0,176.41,176.38,27.74647295]
[1730123596532,70.0,176.41,176.37,27.74647295]
[1730123596917,70.0,176.44,176.4,27.74647295]
[1730123597526,97.74647295,176.44,176.37,27.74647295]
[1730123597730,6.5227,176.46,176.37,27.74647295]
[1730123597731,70.0,176.42,176.37,27.74647295]
[1730123597934,70.0,176.42,176.38,27.74647295]
[1730123598745,70.0,176.4,176.34,27.74647295]
[1730123599032,27.74647295,176.37,176.32,27.74647295]
[1730123599202,70.0,176.36,176.31,27.74647295]
[1730123599407,97.74647295,176.36,176.3,27.74647295]
[1730123600021,27.74647295,176.35,176.29,27.74647295]
[1730123600803,27.74647295,176.33,176.28,27.74647295]
[1730123601026,70.0,176.34,176.29,27.74647295]
[1730123601027,97.74647295,176.34,176.29,27.74647295]
[1730123601916,70.0,176.34,176.29,27.74647295]
[1730123602117,97.74647295,176.34,176.29,27.74647295]
[1730123602318,70.0,176.34,176.29,27.74647295]
[1730123603001,70.0,176.34,176.3,27.74647295]
[1730123603207,70.0,176.36,176.32,27.74647295]
[1730123603401,30.0,176.33,176.32,27.74647295]
[1730123603923,70.0,176.38,176.32,27.74647295]
[1730123604133,70.0,176.38,176.35,27.74647295]
[1730123605732,70.0,176.38,176.34,27.74647295]
[1730123605914,70.0,176.38,176.24,22.4179]
[1730123605915,97.74647295,176.36,176.31,27.74647295]
[1730123606322,70.0,176.36,176.31,27.74647295]
[1730123606535,97.74647295,176.36,176.31,27.74647295]
[1730123606830,70.0,176.34,176.31,27.74647295]
[1730123607133,70.0,176.34,176.3,27.74647295]
[1730123607333,30.0,176.35,176.31,27.74647295]
[1730123607630,30.0,176.35,176.34,27.74647295]
[1730123607819,70.0,176.24,176.21,27.74647295]
[1730123608023,70.0,176.26,176.22,27.74647295]
[1730123608524,70.0,176.26,176.21,27.74647295]
[1730123609039,70.0,176.26,176.2,27.74647295]
[1730123609335,70.0,176.26,176.21,27.74647295]
[1730123609639,5.6726,176.29,176.22,27.74647295]
[1730123609640,70.0,176.28,176.22,27.74647295]
[1730123610339,70.0,176.28,176.23,27.74647295]
[1730123610540,97.74647295,176.3,176.24,27.74647295]
[1730123610837,97.74647295,176.3,176.23,27.74647295]
[1730123612235,97.74647295,176.3,176.24,27.74647295]
[1730123612437,70.0,176.32,176.27,27.74647295]
[1730123612640,97.74647295,176.34,176.28,27.74647295]
[1730123612936,97.74647295,176.34,176.27,27.74647295]
[1730123613135,27.74647295,176.33,176.27,27.74647295]
[1730123613311,97.74647295,176.34,176.27,27.74647295]
[1730123613513,97.74647295,176.34,176.28,27.74647295]
[1730123614016,70.0,176.34,176.29,27.74647295]
[1730123614324,70.0,176.34,176.28,27.74647295]
[1730123615122,70.0,176.34,176.2,16.4696]
[1730123615123,27.74647295,176.31,176.25,27.74647295]
[1730123615508,97.74647295,176.32,176.26,27.74647295]
[1730123615735,70.0,176.32,176.27,27.74647295]
[1730123616235,97.74647295,176.34,176.28,27.74647295]
[1730123616424,70.0,176.34,176.28,27.74647295]
[1730123616921,97.74647295,176.34,176.27,27.74647295]
[1730123617123,27.74647295,176.33,176.27,27.74647295]
[1730123617625,70.0,176.32,176.26,27.74647295]
[1730123617825,70.0,176.32,176.27,27.74647295]
[1730123618839,70.0,176.32,176.26,27.74647295]
[1730123619013,70.0,176.3,176.24,27.74647295]
[1730123619418,30.0,176.29,176.25,27.74647295]
[1730123620633,30.0,176.29,176.26,27.74647295]
[1730123621346,30.0,176.29,176.13,23.0838]
[1730123621347,70.0,176.23,176.13,23.0838]
[1730123621532,27.74647295,176.21,176.14,27.74647295]
[1730123621734,30.0,176.2,176.15,27.74647295]
[1730123622250,30.0,176.2,176.14,27.74647295]
[1730123623138,57.74647295,176.2,176.14,27.74647295]
[1730123623440,97.74647295,176.17,176.11,0.5988059]
[1730123623764,30.0,176.16,176.11,28.34527885]
[1730123623940,30.0,176.16,176.11,0.5988059]
[1730123624246,70.0,176.15,176.11,6.2769059]
[1730123624645,30.0,176.13,176.11,6.2769059]
[1730123624825,30.0,176.13,176.11,0.5988059]
[1730123625357,30.0,176.13,176.11,6.2770059]
[1730123625643,30.0,176.13,176.11,34.02347885]
[1730123625834,30.0,176.13,176.11,0.5988059]
[1730123626844,70.0,176.14,176.11,0.5988059]
[1730123627020,70.0,176.16,176.12,27.74647295]
[1730123627547,70.0,176.18,176.13,27.74647295]
[1730123627731,97.74647295,176.17,176.11,6.2770059]
[1730123627940,70.0,176.17,176.13,27.74647295]
[1730123628253,70.0,176.19,176.13,33.42377295]
[1730123628418,70.0,176.19,176.15,27.74647295]
[1730123628618,70.0,176.19,176.14,27.74647295]
[1730123629144,70.0,176.21,176.16,27.74647295]
[1730123629529,70.0,176.21,176.15,27.74647295]
[1730123629933,30.0,176.16,176.15,27.74647295]
[1730123630148,30.0,176.16,176.13,27.74647295]
[1730123630650,30.0,176.16,176.15,27.74647295]
[1730123632129,97.74647295,176.23,176.15,27.74647295]
[1730123632345,97.74647295,176.23,176.17,27.74647295]
[1730123632346,70.0,176.23,176.17,27.74647295]
[1730123632551,70.0,176.2,176.15,27.74647295]
[1730123632753,70.0,176.2,176.16,27.74647295]
[1730123633052,70.0,176.22,176.16,27.74647295]
[1730123633236,30.0,176.17,176.16,27.74647295]
[1730123635456,30.0,176.17,176.16,33.42307295]
[1730123636632,70.0,176.22,176.16,33.42307295]
[1730123636836,70.0,176.22,176.18,27.74647295]
[1730123637034,70.0,176.24,176.18,27.74647295]
[1730123637554,70.0,176.24,176.13,42.93327295]
[1730123637555,97.74647295,176.24,176.17,27.74647295]
[1730123637752,70.0,176.24,176.21,27.74647295]
[1730123637957,70.0,176.24,176.19,27.74647295]
[1730123638362,97.74647295,176.24,176.17,27.74647295]
[1730123638653,70.0,176.24,176.19,27.74647295]
[1730123638837,97.74647295,176.24,176.17,27.74647295]
[1730123639256,97.74647295,176.24,176.18,27.74647295]
[1730123639636,30.0,176.2,176.18,27.74647295]
[1730123640346,30.0,176.2,176.13,27.74647295]
[1730123640347,70.0,176.18,176.11,0.5988059]
[1730123640649,70.0,176.18,176.13,27.74647295]
[1730123640954,30.0,176.16,176.14,27.74647295]
[1730123641536,30.0,176.16,176.11,0.5988059]
[1730123641537,30.0,176.16,176.15,27.74647295]
[1730123642047,30.0,176.16,176.14,27.74647295]
[1730123642848,30.0,176.16,176.13,27.74647295]
[1730123643042,30.0,176.16,176.12,5.6779]
[1730123643247,133.42317295,176.16,176.11,0.5988059]
[1730123643453,27.74647295,176.15,176.11,0.5988059]
[1730123643672,30.0,176.13,176.11,0.5988059]
[1730123644353,100.0,176.13,176.11,0.5988059]
[1730123645638,30.0,176.13,176.11,6.2770059]
[1730123646958,30.0,176.13,176.11,23.70556068]
[1730123647156,30.0,176.13,176.11,6.2770059]
[1730123647558,100.0,176.13,176.11,0.5988059]
[1730123648835,17.42855478,176.12,176.11,0.5988059]
[1730123649060,47.42855478,176.12,176.11,0.5988059]
[1730123649260,47.42855478,176.12,176.05,0.4]
[1730123649261,70.0,176.06,176.05,0.4]
[1730123649471,71.55641878,176.12,176.05,0.4]
[1730123649472,70.0,176.09,176.05,6.08]
[1730123649768,70.0,176.09,176.05,0.4]
[1730123649958,30.0,176.06,176.05,0.4]
[1730123650960,30.0,176.06,176.05,6.0802]
[1730123651486,30.0,176.06,176.05,0.4]
[1730123651644,30.0,176.06,176.05,6.0802]
[1730123653239,30.0,176.06,176.05,33.99297878]
[1730123653752,70.0,176.11,176.05,33.99297878]
[1730123653960,70.0,176.11,176.07,27.91277878]
[1730123654264,104.29117878,176.13,176.07,27.91277878]
[1730123654654,76.3784,176.13,176.08,27.91277878]
[1730123655044,27.91277878,176.14,176.09,5.6789]
[1730123655253,70.0,176.15,176.1,27.91277878]
[1730123655552,97.91277878,176.17,176.11,27.91277878]
[1730123656948,97.91277878,176.13,176.09,5.6789]
[1730123657157,70.0,176.13,176.09,5.6789]
[1730123657555,97.91277878,176.15,176.09,33.59167878]
[1730123658065,70.0,176.15,176.1,27.91277878]
[1730123658641,70.0,176.15,176.11,27.91277878]
[1730123658842,27.91277878,176.17,176.11,27.91277878]
[1730123658843,97.91277878,176.17,176.11,27.91277878]
[1730123659046,70.0,176.15,176.12,5.6779]
[1730123659359,70.0,176.17,176.12,33.59067878]
[1730123660350,97.91277878,176.17,176.12,5.6779]
[1730123660673,70.0,176.17,176.12,33.59067878]
[1730123661267,70.0,176.17,176.13,27.91277878]
[1730123662071,70.0,176.09,176.06,5.6795]
[1730123662253,27.91277878,176.1,176.06,5.6795]
[1730123662563,27.91277878,176.1,176.05,0.4]
[1730123662564,70.0,176.06,176.05,0.4]
[1730123663762,100.0,176.06,176.05,0.4]
[1730123663972,70.0,176.06,176.05,0.4]
[1730123665466,100.0,176.06,176.05,0.4]
[1730123672682,100.0,176.06,176.05,23.52170498]
[1730123672969,30.0,176.06,176.05,23.52170498]
[1730123673556,30.0,176.06,176.05,6.0802]
[1730123676981,100.0,176.06,176.05,6.0802]
[1730123677551,100.0,176.06,176.05,0.4]
[1730123678370,70.0,176.06,176.05,0.4]
[1730123681368,100.0,176.06,176.05,0.4]
[1730123682082,100.0,176.06,176.05,6.0802]
[1730123682667,100.0,176.06,176.05,0.4]
[1730123683166,153.54896898,176.06,176.05,0.4]
[1730123683479,70.0,175.99,175.94,0.5988059]
[1730123683671,30.0,175.98,175.94,18.04031088]
[1730123684375,30.0,175.98,175.95,5.6834]
[1730123684566,30.0,175.98,175.96,17.44150498]
[1730123684764,30.0,175.98,175.97,17.44150498]
[1730123685781,70.0,176.04,175.97,17.44150498]
[1730123685989,70.0,176.04,176.01,17.44150498]
[1730123686559,70.0,176.04,176.02,17.44150498]
[1730123686861,15.8258,176.07,176.02,17.44150498]
[1730123686862,70.0,176.07,176.02,17.44150498]
[1730123687181,70.0,176.09,176.04,17.44150498]
[1730123687484,87.44150498,176.09,176.03,17.44150498]
[1730123687877,70.0,176.09,176.04,17.44150498]
[1730123688685,70.0,176.09,176.05,17.44150498]
[1730123690678,70.0,176.09,176.06,5.6798]
[1730123692065,70.0,176.09,176.04,5.6805]
[1730123692066,70.0,176.07,176.04,5.6805]
[1730123692271,70.0,176.07,176.03,23.12220498]
[1730123692673,70.0,176.05,176.03,5.6807]
[1730123693073,70.0,176.05,176.03,23.12220498]
[1730123694490,70.0,176.07,176.04,17.44150498]
[1730123694659,70.0,176.07,176.03,23.12220498]
[1730123694991,70.0,176.07,176.03,5.6807]
[1730123695359,70.0,176.05,176.01,17.44150498]
[1730123695693,70.0,176.05,176.02,17.44150498]
[1730123696471,70.0,176.05,176.03,5.6808]
[1730123697489,70.0,176.07,176.03,17.44150498]
[1730123697688,70.0,176.07,176.06,17.44150498]
[1730123697872,70.0,176.07,176.05,17.44150498]
[1730123698268,70.0,176.07,176.04,17.44150498]
[1730123698995,70.0,176.07,176.05,17.44150498]
[1730123699197,70.0,176.07,176.06,17.44150498]
[1730123699682,70.0,176.07,176.04,23.12180498]
[1730123699883,70.0,176.03,175.95,5.6834]
[1730123700085,70.0,176.03,176.02,17.44150498]
[1730123700289,70.0,176.05,176.02,17.44150498]
[1730123701095,70.0,176.05,176.01,17.44150498]
[1730123701306,70.0,176.05,176.03,5.6808]
[1730123701469,70.0,176.05,176.02,17.44150498]
[1730123701470,70.0,176.05,176.01,5.6812]
[1730123701674,70.0,176.03,176.0,23.12320498]
[1730123702197,70.0,176.03,175.95,17.44150498]
[1730123702198,70.0,175.95,175.94,0.5988059]
[1730123703490,117.15276898,175.95,175.94,0.5988059]
[1730123704077,93.37588498,175.95,175.94,0.5988059]
[1730123704277,70.0,175.95,175.94,0.5988059]
[1730123704494,75.6834,175.95,175.94,0.5988059]
[1730123704879,70.0,175.95,175.94,0.5988059]
[1730123705289,93.12490498,175.95,175.94,0.5988059]
[1730123705692,75.6834,175.95,175.94,0.5988059]
[1730123705891,93.12490498,175.95,175.94,0.5988059]
[1730123707198,117.15276898,175.95,175.94,0.5988059]
[1730123707577,117.25276898,175.95,175.94,0.5988059]
[1730123709090,134.69427396,175.95,175.94,0.5988059]
[1730123709602,140.80767396,175.95,175.94,0.5988059]
[1730123710180,70.0,175.84,175.79,16.5263]
[1730123710506,70.0,175.84,175.81,17.44150498]
[1730123710679,70.0,175.86,175.83,17.44150498]
[1730123710881,70.0,175.88,175.84,17.44150498]
[1730123711200,70.0,175.88,175.85,17.44150498]
[1730123711524,70.0,175.88,175.87,17.44150498]
[1730123711702,70.0,175.9,175.87,17.44150498]
[1730123712299,70.0,175.9,175.85,17.44150498]
[1730123712705,70.0,175.9,175.87,17.44150498]
[1730123713015,70.0,175.9,175.79,16.6263]
[1730123713295,70.0,175.88,175.83,17.44150498]
[1730123713695,70.0,175.85,175.83,17.44150498]
[1730123713895,70.0,175.85,175.81,17.44150498]
[1730123714190,70.0,175.85,175.79,16.5263]
[1730123714191,70.0,175.82,175.8,17.44150498]
[1730123714389,17.44150498,175.85,175.79,16.5263]
[1730123714390,70.0,175.84,175.79,17.44150498]
[1730123714700,70.0,175.84,175.8,17.44150498]
[1730123715392,70.0,175.84,175.79,17.44150498]
[1730123717896,87.44150498,175.84,175.79,17.44150498]
[1730123718400,87.44150498,175.84,175.76,0.5988059]
[1730123718401,70.0,175.8,175.76,0.5988059]
[1730123718706,70.0,175.8,175.76,18.04031088]
[1730123719289,70.0,175.8,175.76,0.5988059]
[1730123719481,70.0,175.8,175.76,18.04031088]
[1730123719682,70.0,175.8,175.76,0.5988059]
[1730123719906,70.0,175.8,175.76,18.04031088]
[1730123720808,70.0,175.8,175.77,17.44150498]